[Event "SVK Extraliga 2017-18"]
[Site "Slovakia"]
[Date "2017.09.30"]
[Round "1"]
[White "Sorkovsky, Miroslav"]
[Black "Lembak, Jurij"]
[Result "1/2-1/2"]
[ECO "C11"]
[WhiteElo "2180"]
[BlackElo "2204"]
[Annotator "NA"]
[PlyCount "105"]
[EventDate "2017.09.30"]
[EventType "team-tourn"]
[EventCountry "SVK"]
[SourceTitle "playchess.com"]
[Source "ChessBase"]
[SourceQuality "1"]
[TimeControl "40/5400+30:1800+30"]

1. e4 {[%emt 0:00:00]} e6 {[%emt 0:00:08]} 2. d4 {[%emt 0:00:00]} d5 {[%emt 0:00:10]} 3. Nc3 {[%emt 0:00:00]} Nf6 {[%emt 0:03:38]} 4. e5 {[%emt 0:00:00]} Nfd7 {[%emt 0:00:05]} 5. f4 {[%emt 0:00:00]} c5 {[%emt 0:00:57]} 6. Nf3 {[%emt 0:00:00]} Nc6 {[%emt 0:00:37]} 7. Be3 {[%emt 0:00:00]} Qb6 {[%emt 0:02:02]} 8. Na4 {[%emt 0:01:51]} Qa5+ {[%emt 0:04:16]} 9. c3 {[%emt 0:00:06]} c4 {[%emt 0:01:41]} 10. b4 {[%emt 0:01:20]} Qc7 {[%emt 0:00:59]} 11. Be2 {[%emt 0:02:50]} Be7 {[%emt 0:05:51]} 12. O-O {[%emt 0:00:20]} O-O {[%emt 0:00:33]} 13. Nb2 {[%emt 0:17:13]} b5 {[%emt 0:11:25]} 14. a4 $11 {[%emt 0:09:08]} Rb8 {[%emt 0:13:32]} 15. a5 {[%emt 0:14:36]} f5 {[%emt 0:03:21]} 16. Ng5 {[%emt 0:06:10]} Nd8 {[%emt 0:05:17]} 17. Qc2 {[%emt 0:08:47]} h6 {[%emt 0:07:31]} 18. Nh3 {[%emt 0:01:56]} g6 {[%emt 0:07:58]} 19. Kh1 {[%emt 0:01:02]} Rf7 {[%emt 0:01:58]} 20. Rg1 {[%emt 0:00:41]} h5 {[%emt 0:01:03]} 21. Ng5 {[%emt 0:03:10]} Bxg5 {[%emt 0:00:58]} 22. fxg5 {[%emt 0:00:05]} Nf8 {[%emt 0:00:21]} 23. Raf1 {[%emt 0:05:46]} Qe7 {[%emt 0:02:27]} 24. Nd1 {[%emt 0:02:57]} Rb7 {[%emt 0:04:30]} 25. Qd2 {[%emt 0:01:37]} Rh7 {[%emt 0:00:44]} 26. Nf2 {[%emt 0:00:37]} Bd7 {[%emt 0:01:02]} 27. Nh3 {[%emt 0:00:56]} Bc6 {[%emt 0:00:55]} 28. Rf2 {[%emt 0:11:50]} a6 {[%emt 0:01:45]} 29. Rgf1 {[%emt 0:00:11]} Kf7 {[%emt 0:03:14]} 30. Kg1 {[%emt 0:04:11]} Ke8 {[%emt 0:00:30]} 31. Rf4 {[%emt 0:00:58]} Rh8 {[%emt 0:02:07]} 32. Rh4 {[%emt 0:03:12]} Nf7 {[%emt 0:02:08]} 33. g3 {[%emt 0:00:59]} Kd8 {[%emt 0:01:01]} 34. Kf2 {[%emt 0:00:16]} Kc8 {[%emt 0:00:12]} 35. Ke1 {[%emt 0:00:11]} Rg8 {[%emt 0:01:44]} 36. Ng1 {[%emt 0:01:27]} Nh7 {[%emt 0:02:38]} 37. Nf3 {[%emt 0:00:31]} Rg7 {[%emt 0:00:40]} 38. Kd1 {[%emt 0:01:06]} Nd8 {[%emt 0:00:29]} 39. Kc1 {[%emt 0:00:18]} Nf8 {[%emt 0:00:45]} 40. Rf2 {[%emt 0:00:56]} Rh7 {[%emt 0:30:28]} 41. h3 {[%emt 0:30:35]} Qe8 {[%emt 0:01:10]} 42. Bd1 {[%emt 0:02:20]} Rbf7 {[%emt 0:01:12]} 43. Bc2 {[%emt 0:00:00]} Bd7 {[%emt 0:00:00]} 44. Rh2 {[%emt 0:00:00]} Nc6 {[%emt 0:00:00]} 45. Qg2 {[%emt 0:00:00]} Ne7 {[%emt 0:00:00]} 46. Bd2 {[%emt 0:00:00]} Kb7 {[%emt 0:00:00]} 47. Qh1 {[%emt 0:00:00]} Bc6 {[%emt 0:00:00]} 48. Rf4 {[%emt 0:00:00]} Rh8 {[%emt 0:00:00]} 49. Qf1 {[%emt 0:00:00]} Rhh7 {[%emt 0:00:00]} 50. Rf2 {[%emt 0:00:00]} Rh8 {[%emt 0:00:00]} 51. Nh2 {[%emt 0:00:00]} Nd7 {[%emt 0:00:00]} 52. g4 hxg4 53. Qe1 1/2-1/2

[Event "SVK Extraliga 2017-18"]
[Site "Slovakia"]
[Date "2017.09.30"]
[Round "1"]
[White "Klemanic, Emil"]
[Black "Urhegyi, Marton"]
[Result "1/2-1/2"]
[ECO "A08"]
[WhiteElo "2116"]
[BlackElo "2256"]
[Annotator "NA"]
[PlyCount "42"]
[EventDate "2017.09.30"]
[EventType "team-tourn"]
[EventCountry "SVK"]
[SourceTitle "playchess.com"]
[Source "ChessBase"]
[SourceQuality "1"]
[TimeControl "40/5400+30:1800+30"]

1. e4 {[%emt 0:00:00]} e6 {[%emt 0:00:19]} 2. d3 {[%emt 0:00:10]} d5 {[%emt 0:00:07]} 3. Nd2 {[%emt 0:00:06]} Nf6 {[%emt 0:00:52]} 4. Ngf3 {[%emt 0:00:11]} c5 {[%emt 0:00:30]} 5. g3 {[%emt 0:00:19]} Nc6 {[%emt 0:00:33]} 6. Bg2 {[%emt 0:00:06]} Be7 {[%emt 0:00:15]} 7. O-O {[%emt 0:00:05]} O-O {[%emt 0:00:20]} 8. Re1 {[%emt 0:00:08]} b5 {[%emt 0:02:11]} 9. e5 {[%emt 0:01:01]} Nd7 {[%emt 0:00:32]} 10. Nf1 {[%emt 0:00:03]} a5 {[%emt 0:12:46]} 11. h4 {[%emt 0:00:28]} a4 {[%emt 0:04:45]} 12. a3 {[%emt 0:03:35]} b4 {[%emt 0:04:31]} 13. N1h2 {[%emt 0:00:04]} Bb7 {[%emt 0:15:01]} 14. Bg5 {[%emt 0:05:50]} Nb6 {[%emt 0:08:48]} 15. Ng4 $11 {[%emt 0:06:07]} Kh8 {[%emt 0:13:36]} 16. Bxe7 {[%emt 0:09:16]} Qxe7 {[%emt 0:01:22]} 17. Qd2 {[%emt 0:00:10]} Rab8 {[%emt 0:06:43]} 18. h5 {[%emt 0:00:44]} c4 {[%emt 0:06:03]} 19. h6 {[%emt 0:03:59]} g6 {[%emt 0:02:47]} 20. Qf4 {[%emt 0:10:40]} b3 {[%emt 0:04:18]} 21. cxb3 {[%emt 0:04:13]} axb3 {[%emt 0:00:52]} 1/2-1/2

[Event "SVK Extraliga 2017-18"]
[Site "Slovakia"]
[Date "2017.09.30"]
[Round "1"]
[White "Gulbis, Adrian"]
[Black "Krak, Tomas"]
[Result "1/2-1/2"]
[ECO "A64"]
[WhiteElo "2097"]
[BlackElo "2312"]
[Annotator "NA"]
[PlyCount "87"]
[EventDate "2017.09.30"]
[EventType "team-tourn"]
[EventCountry "SVK"]
[SourceTitle "playchess.com"]
[Source "ChessBase"]
[SourceQuality "1"]
[TimeControl "40/5400+30:1800+30"]

1. d4 {[%emt 0:00:00]} Nf6 {[%emt 0:00:21]} 2. c4 {[%emt 0:00:00]} c5 {[%emt 0:02:03]} 3. d5 {[%emt 0:00:03]} e6 {[%emt 0:02:42]} 4. Nc3 {[%emt 0:00:23]} exd5 {[%emt 0:00:12]} 5. cxd5 {[%emt 0:00:07]} d6 {[%emt 0:00:03]} 6. g3 {[%emt 0:01:34]} g6 {[%emt 0:00:07]} 7. Bg2 {[%emt 0:00:03]} Bg7 {[%emt 0:00:05]} 8. Nf3 {[%emt 0:00:06]} O-O {[%emt 0:00:04]} 9. O-O {[%emt 0:00:05]} Re8 {[%emt 0:00:07]} 10. Nd2 {[%emt 0:00:35]} a6 {[%emt 0:00:45]} 11. a4 {[%emt 0:00:07]} Nbd7 {[%emt 0:00:42]} 12. Nc4 {[%emt 0:00:39]} Ne5 {[%emt 0:06:04]} 13. Nxe5 {[%emt 0:00:23]} Rxe5 {[%emt 0:00:07]} 14. e4 {[%emt 0:00:32] LiveBook: 34 Games} Re8 {[%emt 0:01:42]} 15. h3 {[%emt 0:04:30]} Rb8 {[%emt 0:02:11]} 16. a5 {[%emt 0:01:06]} b5 {[%emt 0:05:17]} 17. axb6 $1 {[%emt 0:00:08]} Rxb6 {[%emt 0:00:05]} 18. Kh2 {[%emt 0:06:34]} Nd7 {[%emt 0:03:17]} 19. f4 {[%emt 0:04:05]} Rb4 {[%emt 0:05:28]} 20. Ra4 {[%emt 0:02:06]} a5 {[%emt 0:05:56]} 21. Rxb4 {[%emt 0:04:31]} (21. Ra3 $11) 21... cxb4 {[%emt 0:04:36]} 22. Na4 {[%emt 0:03:41]} Ba6 {[%emt 0:03:48]} 23. Re1 {[%emt 0:11:09]} Bb5 {[%emt 0:01:08]} 24. Kg1 {[%emt 0:01:10]} f5 {[%emt 0:19:10]} 25. Bf1 {[%emt 0:11:11]} Bxa4 {[%emt 0:06:50]} 26. Qxa4 {[%emt 0:00:45]} Nc5 {[%emt 0:00:07]} ({But not} 26... Rxe4 27. Rxe4 fxe4 28. Qb5) ({Don't take} 26... fxe4 27. Bb5) 27. Qc6 {[%emt 0:08:59]} Bd4+ {[%emt 0:01:25]} 28. Kg2 {[%emt 0:04:13]} Rxe4 {[%emt 0:01:21]} 29. Rxe4 {[%emt 0:02:07]} fxe4 {[%emt 0:02:39]} ({Don't play} 29... Nxe4 30. Qc4 $19) 30. Be2 {[%emt 0:07:29]} Kg7 {[%emt 0:15:05]} 31. Bg4 {[%emt 0:02:54]} Qe7 $19 {[%emt 0:01:38]} 32. Qc8 {[%emt 0:01:59]} e3 {[%emt 0:05:10]} 33. Be6 {[%emt 0:00:48]} Nxe6 {[%emt 0:03:22]} 34. dxe6 {[%emt 0:00:09]} a4 {[%emt 0:00:54]} 35. Kf3 {[%emt 0:08:20]} Kf6 {[%emt 0:01:41]} 36. g4 {[%emt 0:09:09]} e2 {[%emt 0:01:43]} 37. g5+ {[%emt 0:00:51]} Kf5 {[%emt 0:00:15]} 38. Qc2+ {[%emt 0:00:29]} Kxe6 {[%emt 0:00:11]} 39. Qxe2+ {[%emt 0:00:08]} Kd7 {[%emt 0:00:35]} 40. Qb5+ {[%emt 0:00:24]} Kd8 {[%emt 0:30:59]} 41. Qxb4 {[%emt 0:07:02]} Bc5 {[%emt 0:00:00]} 42. Qb8+ {[%emt 0:06:28]} Kd7 {[%emt 0:00:00]} 43. Qb5+ {[%emt 0:00:58]} Kc7 {[%emt 0:00:00]} 44. Qa5+ {[%emt 0:03:38]} 1/2-1/2

[Event "SVK Extraliga 2017-18"]
[Site "Slovakia"]
[Date "2017.09.30"]
[Round "1"]
[White "Pcola, Jaroslav"]
[Black "Szeko, Ludovit"]
[Result "1-0"]
[ECO "B03"]
[WhiteElo "2083"]
[BlackElo "2044"]
[Annotator "NA"]
[PlyCount "97"]
[EventDate "2017.09.30"]
[EventType "team-tourn"]
[EventCountry "SVK"]
[SourceTitle "playchess.com"]
[Source "ChessBase"]
[SourceQuality "1"]
[TimeControl "40/5400+30:1800+30"]

1. e4 {[%emt 0:00:00]} Nf6 {[%emt 0:00:15]} 2. e5 {[%emt 0:00:07]} Nd5 {[%emt 0:00:10]} 3. d4 {[%emt 0:00:45]} d6 {[%emt 0:00:04]} 4. Bc4 {[%emt 0:00:58]} Nb6 {[%emt 0:00:06]} 5. Bb3 {[%emt 0:00:44]} g6 {[%emt 0:00:22]} 6. Qf3 {[%emt 0:08:00] B03: Alekhine's Defence: Four Pawns Attack} (6. f4 Bg7 7. Nf3 O-O 8. O-O Bg4 9. c3 N8d7 10. h3 Bf5 11. g4 Bxb1 12. Rxb1 e6 13. Qe2 c5 14. f5 dxe5 15. dxe5 {1-0 (30) Bodnaruk,A (2417)-Saulina,V (2253) Magnitogorsk 2011}) 6... d5 {[%emt 0:01:27]} 7. Nc3 {[%emt 0:11:16]} c6 {[%emt 0:11:30]} 8. Qg3 $146 {[%emt 0:09:40]} ({Predecessor:} 8. h4 h5 9. Nge2 Bg4 10. Qg3 Qd7 11. f3 Bf5 12. Bf4 Na6 13. O-O-O Nc7 {1-0 (42) Tonndorf,M (2222)-Kesik,K (2233) Blankenburg 2013}) 8... Bf5 {[%emt 0:01:52]} 9. Nf3 {[%emt 0:01:19]} a5 {[%emt 0:02:47]} 10. a4 {[%emt 0:06:38]} Na6 {[%emt 0:00:09]} 11. Nh4 {[%emt 0:01:37]} Qd7 {[%emt 0:01:17]} 12. Qf4 {[%emt 0:03:59]} Be6 {[%emt 0:04:31]} 13. Ne2 {[%emt 0:07:07]} Bg7 {[%emt 0:09:36]} 14. c3 {[%emt 0:04:57]} O-O {[%emt 0:06:52]} 15. O-O {[%emt 0:01:11]} f6 {[%emt 0:01:49] [#]} 16. Qg3 $1 {[%emt 0:02:51]} fxe5 {[%emt 0:03:43]} 17. dxe5 {[%emt 0:00:33]} Bg4 {[%emt 0:07:52]} 18. Re1 {[%emt 0:04:27]} Bxe2 {[%emt 0:00:36]} 19. Rxe2 {[%emt 0:00:22]} Nc5 {[%emt 0:03:34]} 20. Bc2 {[%emt 0:06:51]} Ne6 $18 {[%emt 0:11:33]} (20... Ne4 $1 $11 21. Bxe4 dxe4) 21. Nf3 {[%emt 0:09:39]} Rf7 {[%emt 0:05:07]} 22. b3 {[%emt 0:04:06]} Raf8 {[%emt 0:00:24]} 23. Be3 {[%emt 0:01:24]} Nf4 {[%emt 0:03:50]} 24. Bxf4 {[%emt 0:04:30]} Rxf4 {[%emt 0:01:43]} 25. e6 {[%emt 0:04:09]} Qe8 {[%emt 0:06:33]} 26. Ng5 {[%emt 0:00:17]} R4f6 {[%emt 0:03:21]} 27. Qh3 {[%emt 0:01:03]} h6 {[%emt 0:00:46]} 28. Nf7 {[%emt 0:00:47]} R8xf7 {[%emt 0:02:03]} 29. exf7+ {[%emt 0:00:03]} Qxf7 {[%emt 0:00:19]} 30. Rae1 {[%emt 0:00:31]} Bf8 {[%emt 0:00:53]} 31. Qg4 {[%emt 0:03:44]} e5 {[%emt 0:00:53]} 32. Rxe5 {[%emt 0:00:36]} Bc5 {[%emt 0:00:08]} 33. Kh1 {[%emt 0:01:38]} Nd7 {[%emt 0:02:38]} 34. Re8+ {[%emt 0:00:07]} Nf8 {[%emt 0:00:20]} 35. f3 {[%emt 0:00:12]} Kg7 {[%emt 0:00:34]} 36. Qg3 {[%emt 0:01:18]} Bd6 {[%emt 0:02:04]} 37. Qf2 {[%emt 0:00:04]} Ne6 {[%emt 0:00:11]} 38. Ra8 {[%emt 0:00:25]} Bc5 {[%emt 0:01:13]} 39. Qe2 {[%emt 0:00:33]} Nc7 {[%emt 0:00:42]} 40. Rb8 {[%emt 0:00:37]} Re6 {[%emt 0:31:57]} 41. Qd1 {[%emt 0:03:25]} Rf6 {[%emt 0:00:00]} 42. Rxb7 {[%emt 0:02:23]} h5 {[%emt 0:00:00]} 43. b4 {[%emt 0:01:59]} axb4 {[%emt 0:00:00]} 44. cxb4 {[%emt 0:00:13]} Bd6 {[%emt 0:00:00]} 45. Qd4 {[%emt 0:06:32]} Kh6 {[%emt 0:00:00]} 46. Qe3+ {[%emt 0:03:45]} g5 {[%emt 0:00:00]} 47. h4 {[%emt 0:02:34]} Rf4 {[%emt 0:00:00]} 48. g3 {[%emt 0:02:19]} Qd7 {[%emt 0:00:00]} 49. Qe6+ {[%emt 0:04:32]} 1-0

[Event "SVK Extraliga 2017-18"]
[Site "Slovakia"]
[Date "2017.09.30"]
[Round "1"]
[White "Blaho, Stefan"]
[Black "Fiacan, Robert"]
[Result "0-1"]
[ECO "A40"]
[WhiteElo "2029"]
[BlackElo "2205"]
[Annotator "NA"]
[PlyCount "64"]
[EventDate "2017.09.30"]
[EventType "team-tourn"]
[EventCountry "SVK"]
[SourceTitle "playchess.com"]
[Source "ChessBase"]
[SourceQuality "1"]
[TimeControl "40/5400+30:1800+30"]

1. d4 {[%emt 0:00:00]} g6 {[%emt 0:00:22]} 2. Nf3 {[%emt 0:00:00]} Bg7 {[%emt 0:00:09]} 3. Bf4 {[%emt 0:02:16]} d6 {[%emt 0:00:56]} 4. e3 {[%emt 0:00:25]} Nf6 {[%emt 0:01:08]} 5. h3 {[%emt 0:00:23]} O-O {[%emt 0:00:24]} 6. Be2 {[%emt 0:00:49]} c5 {[%emt 0:08:10] LiveBook: 568 Partien} 7. c3 {[%emt 0:00:17]} a6 {[%emt 0:05:09] A48: 1 d4 Nf6 2 Nf3 g6: Torre, London and Colle Systems} (7... b6 8. O-O Bb7 9. Nbd2 Nbd7 10. Bh2 a6 11. a4 Ra7 12. Bd3 Qa8 13. Qe2 Ne4 14. Nxe4 Bxe4 15. Bxe4 Qxe4 16. Rfc1 Rc8 17. Nd2 Qa8 18. b4 Rac7 19. dxc5 bxc5 {0-1 (45) Bindrich,F (2590)-Amin,B (2662) Doha 2016}) 8. a4 {[%emt 0:00:16]} Qb6 {[%emt 0:01:51]} 9. a5 $146 {[%emt 0:32:53]} ({Predecessor:} 9. Qc1 $11 Nc6 10. Nbd2 cxd4 11. Nc4 Qc7 12. exd4 Re8 13. O-O e5 14. dxe5 dxe5 15. Bh2 {½-½ (49) Fichtner,E (2082)-Wells,D (2007) Shrivenham 2016}) 9... Qxb2 {[%emt 0:06:46]} 10. Ra3 {[%emt 0:03:53]} Bf5 {[%emt 0:02:41]} 11. Rb3 {[%emt 0:30:26]} (11. O-O $17 {is a better defense.}) 11... Qa2 {[%emt 0:02:03]} 12. Rxb7 {[%emt 0:06:53]} Be4 {[%emt 0:10:56]} 13. Qb3 {[%emt 0:00:10]} Qxa5 {[%emt 0:01:42]} 14. Rxe7 {[%emt 0:02:52]} Bxb1 {[%emt 0:15:15]} 15. Qxb1 {[%emt 0:00:20]} Nd5 {[%emt 0:01:58]} 16. O-O {[%emt 0:08:16]} (16. Rb7 $17 Nxf4 17. exf4 Qxc3+ 18. Kf1) 16... Nxe7 $19 {[%emt 0:01:10]} 17. Bxd6 {[%emt 0:01:22]} Nbc6 {[%emt 0:01:14]} 18. Bxc5 {[%emt 0:04:33]} Rfb8 {[%emt 0:06:21]} 19. Qe4 {[%emt 0:00:02]} Qa2 {[%emt 0:01:24]} 20. Re1 {[%emt 0:02:06]} Nd5 {[%emt 0:02:07]} 21. Ng5 {[%emt 0:00:38]} Re8 {[%emt 0:03:48]} 22. Qh4 {[%emt 0:01:03]} h6 {[%emt 0:00:16]} 23. Ne4 {[%emt 0:00:23]} Nxc3 {[%emt 0:06:09]} 24. Nxc3 {[%emt 0:01:03]} Qd2 {[%emt 0:00:08]} 25. Rb1 {[%emt 0:00:27]} Qxc3 {[%emt 0:00:10]} 26. Bf3 {[%emt 0:00:01]} Rac8 {[%emt 0:01:37]} 27. Bd5 {[%emt 0:00:03]} Qd3 {[%emt 0:04:40]} 28. Rb7 Nd8 {[%emt 0:00:08]} 29. Rd7 {[%emt 0:01:34]} Qb5 {[%emt 0:04:57]} 30. Rd6 {[%emt 0:00:50]} Rxc5 {[%emt 0:05:08]} 31. Rxd8 {[%emt 0:00:39]} Rxd5 {[%emt 0:00:15]} 32. e4 {[%emt 0:00:28]} Rdxd8 {[%emt 0:00:17]} 0-1

[Event "SVK Extraliga 2017-18"]
[Site "Slovakia"]
[Date "2017.10.01"]
[Round "2"]
[White "Pcola, Pavol"]
[Black "Sorkovsky, Miroslav"]
[Result "1-0"]
[ECO "A20"]
[WhiteElo "2374"]
[BlackElo "2180"]
[Annotator "NA"]
[PlyCount "129"]
[EventDate "2017.09.30"]
[EventType "team-tourn"]
[EventCountry "SVK"]
[SourceTitle "playchess.com"]
[Source "ChessBase"]
[SourceQuality "1"]
[TimeControl "40/5400+30:1800+30"]

1. c4 {[%emt 0:00:00]} e5 {[%emt 0:00:04]} 2. g3 {[%emt 0:00:00]} Nf6 {[%emt 0:00:09]} 3. Bg2 {[%emt 0:00:00]} h6 {[%emt 0:00:09]} 4. Nc3 {[%emt 0:00:27]} Bb4 {[%emt 0:00:11] A20: Englische Eröffnung} 5. e3 {[%emt 0:00:06]} (5. e4 d6 6. Nge2 Nc6 7. h3 Bc5 8. a3 a6 9. d3 Nd4 10. b4 Ba7 11. Be3 O-O 12. O-O {1-0 (41) Svidler,P (2751)-Erdos,V (2628) Tbilisi 2017}) 5... Bxc3 {[%emt 0:00:23]} 6. bxc3 {[%emt 0:00:17]} d6 {[%emt 0:05:04]} 7. Rb1 {[%emt 0:03:10]} Nbd7 $146 {[%emt 0:05:29]} ({Vorgänger:} 7... Nc6 8. d3 O-O 9. e4 Rb8 10. Ne2 Be6 11. f4 exf4 12. Nxf4 {1-0 (57) Baum,B (2303)-Middelhoff,C (2117) Germany 2012}) 8. e4 {[%emt 0:01:09]} O-O {[%emt 0:01:42]} 9. Ne2 {[%emt 0:00:19]} Nc5 {[%emt 0:06:30]} 10. d3 {[%emt 0:01:44]} Bd7 {[%emt 0:03:59]} 11. O-O {[%emt 0:01:53]} Ba4 {[%emt 0:10:52]} 12. Qd2 {[%emt 0:01:35]} Re8 {[%emt 0:11:37]} 13. h3 {[%emt 0:09:03]} Rb8 {[%emt 0:11:46]} 14. Ba3 {[%emt 0:11:56]} b6 {[%emt 0:01:57]} 15. f4 {[%emt 0:02:05]} Nfd7 {[%emt 0:11:07]} 16. Rf3 {[%emt 0:04:47]} Bc6 {[%emt 0:08:35]} 17. Re3 {[%emt 0:05:40]} Ba8 {[%emt 0:06:12]} 18. Kh2 {[%emt 0:03:46]} a6 {[%emt 0:00:46]} 19. g4 {[%emt 0:01:56]} Nf8 {[%emt 0:09:06]} 20. f5 {[%emt 0:01:35]} Qg5 {[%emt 0:00:53]} 21. Ng3 {[%emt 0:05:45]} Nfd7 {[%emt 0:01:43]} 22. Rf1 {[%emt 0:03:35]} b5 {[%emt 0:00:44]} 23. cxb5 $14 {[%emt 0:01:04]} Rxb5 {[%emt 0:00:14]} 24. Qf2 {[%emt 0:08:28]} Ra5 {[%emt 0:01:09]} 25. Bc1 {[%emt 0:01:35]} Qh4 {[%emt 0:00:46]} 26. Qe2 {[%emt 0:08:46]} Nf6 {[%emt 0:00:42]} 27. Nh5 {[%emt 0:00:54]} Nxh5 {[%emt 0:01:04]} 28. gxh5 {[%emt 0:00:07]} Qf6 {[%emt 0:00:46]} 29. Rg3 {[%emt 0:01:22]} Kh8 {[%emt 0:00:23]} 30. Bf3 {[%emt 0:05:13]} Bc6 {[%emt 0:00:18]} 31. Rfg1 {[%emt 0:02:03]} Rg8 {[%emt 0:00:17]} 32. Be3 {[%emt 0:03:31]} Rb5 {[%emt 0:00:07]} 33. R1g2 Na4 {[%emt 0:00:28]} 34. Bc1 {[%emt 0:07:29]} Rb1 {[%emt 0:01:23]} 35. Qc2 {[%emt 0:00:40]} Rbb8 {[%emt 0:00:10]} 36. Rg4 {[%emt 0:00:57]} Rb7 {[%emt 0:00:45]} 37. c4 {[%emt 0:02:39]} Rbb8 {[%emt 0:00:25]} 38. Bd1 {[%emt 0:00:20]} Nc5 {[%emt 0:00:46]} 39. Be3 {[%emt 0:00:29]} Na4 {[%emt 0:00:42]} 40. Qc1 {[%emt 0:00:26]} Nc5 {[%emt 0:30:33]} 41. Bc2 {[%emt 0:31:15]} Kh7 {[%emt 0:00:00]} 42. Qg1 {[%emt 0:00:00]} Nd7 {[%emt 0:00:00]} 43. Bf2 {[%emt 0:00:00]} Qe7 {[%emt 0:00:00]} 44. Rxg7+ {[%emt 0:00:00]} Rxg7 {[%emt 0:00:00]} 45. Rxg7+ {[%emt 0:00:00]} Kh8 {[%emt 0:00:00]} 46. Rg2 {[%emt 0:00:00]} Kh7 {[%emt 0:00:00]} 47. Be3 {[%emt 0:00:00]} Qf6 {[%emt 0:00:00]} 48. Bc1 {[%emt 0:00:00]} Ra8 {[%emt 0:02:50]} 49. Qe3 {[%emt 0:00:00]} Rg8 {[%emt 0:00:41]} 50. Rg6 {[%emt 0:01:09]} Rxg6 {[%emt 0:00:36]} 51. hxg6+ {[%emt 0:00:05]} fxg6 {[%emt 0:00:44]} 52. Qxh6+ {[%emt 0:00:11]} Kg8 {[%emt 0:00:13]} 53. Bg5 {[%emt 0:00:33]} Qg7 {[%emt 0:00:45]} 54. Qxg6 {[%emt 0:04:19]} Qxg6 {[%emt 0:00:21]} 55. fxg6 {[%emt 0:00:04]} Nf8 {[%emt 0:00:34]} 56. h4 {[%emt 0:00:23]} Nxg6 {[%emt 0:00:27]} 57. Bd8 {[%emt 0:00:05]} Kf7 {[%emt 0:00:37]} 58. Bxc7 {[%emt 0:00:33]} Nxh4 {[%emt 0:00:51]} 59. Kg3 {[%emt 0:00:46]} Ng6 {[%emt 0:00:09]} 60. Bxd6 {[%emt 0:00:05]} Ke6 {[%emt 0:00:16]} 61. Bb8 {[%emt 0:00:37]} Nf4 {[%emt 0:00:44]} 62. Kf3 {[%emt 0:00:17]} Ng6 {[%emt 0:00:31]} 63. Bd1 {[%emt 0:00:48]} Ne7 {[%emt 0:00:57]} 64. Ke3 {[%emt 0:00:44]} Be8 {[%emt 0:00:26]} 65. Bc7 {Kd5} 1-0

[Event "SVK Extraliga 2017-18"]
[Site "Slovakia"]
[Date "2017.10.01"]
[Round "2"]
[White "Meszaros, Michal"]
[Black "Spacek, Oliver"]
[Result "1/2-1/2"]
[ECO "B28"]
[WhiteElo "2362"]
[BlackElo "2250"]
[Annotator "NA"]
[PlyCount "54"]
[EventDate "2017.09.30"]
[EventType "team-tourn"]
[EventCountry "SVK"]
[SourceTitle "playchess.com"]
[Source "ChessBase"]
[SourceQuality "1"]
[TimeControl "40/5400+30:1800+30"]

1. e4 {[%emt 0:00:00]} c5 {[%emt 0:00:22]} 2. Nf3 {[%emt 0:00:00]} a6 {[%emt 0:00:25]} 3. Be2 {[%emt 0:01:43]} e6 {[%emt 0:00:30]} 4. d4 {[%emt 0:03:43]} cxd4 {[%emt 0:02:47]} 5. Nxd4 {[%emt 0:00:02]} Nf6 {[%emt 0:00:09]} 6. Nc3 {[%emt 0:00:20]} Bb4 {[%emt 0:04:33]} 7. Qd3 {[%emt 0:00:40]} d5 {[%emt 0:00:39]} 8. exd5 {[%emt 0:24:31]} Nxd5 {[%emt 0:30:59]} 9. Bd2 {[%emt 0:01:23]} Nxc3 {[%emt 0:05:54]} 10. Bxc3 {[%emt 0:03:43]} Qa5 {[%emt 0:02:21]} 11. Bd2 {[%emt 0:14:52]} Bxd2+ {[%emt 0:01:17]} 12. Qxd2 {[%emt 0:02:06]} Qxd2+ {[%emt 0:00:02]} 13. Kxd2 {[%emt 0:00:03]} Ke7 {[%emt 0:10:19]} 14. f4 {[%emt 0:11:25]} Bd7 {[%emt 0:17:04]} 15. Bf3 {[%emt 0:00:35]} Nc6 {[%emt 0:00:05]} 16. Nxc6+ {[%emt 0:02:02]} Bxc6 {[%emt 0:00:09]} 17. Bxc6 {[%emt 0:00:06]} bxc6 {[%emt 0:00:03]} 18. c4 {[%emt 0:08:49]} a5 {[%emt 0:06:46]} 19. Rhe1 {[%emt 0:03:42]} f6 {[%emt 0:03:49]} 20. Re3 {[%emt 0:01:35]} c5 {[%emt 0:00:15]} 21. Rae1 {[%emt 0:01:58]} Ra6 {[%emt 0:00:02]} 22. Kc2 {[%emt 0:13:13]} h6 {[%emt 0:05:04]} 23. h4 {[%emt 0:00:45]} Rb8 {[%emt 0:02:09]} 24. R1e2 {[%emt 0:00:40]} Rab6 {[%emt 0:03:47]} 25. Kc3 {[%emt 0:00:21]} Rd8 {[%emt 0:00:07]} 26. g3 {[%emt 0:00:48]} Rd1 {[%emt 0:00:38]} 27. Kc2 {[%emt 0:00:26]} Rd4 {[%emt 0:01:11]} 1/2-1/2